Workbook

Sheet 歳入
A1: 年度 | B1: 種別 | C1: 性質別種別 | D1: 初期運用の別 | E1: 費目1 | F1: 費目2 | G1: 金額 | H1: 備考 | I1: 担当部署
A2: 1999 | B2: 決算額 | C2: 投資的収入 | D2: イニシャル | E2: 基金収入 | F2: 預金利子 | G2: 118893 | H2: 美術品取得基金に係る預金利子 | I2: 生涯学習課
A3: 2000 | B3: 決算額 | C3: 投資的収入 | D3: イニシャル | E3: 基金収入 | F3: 預金利子 | G3: 184 | H3: 美術品取得基金に係る預金利子 | I3: 生涯学習課
A4: 2001 | B4: 決算額 | C4: 投資的収入 | D4: イニシャル | E4: 基金収入 | F4: 預金利子 | G4: 65871 | H4: 美術品取得基金に係る預金利子 | I4: 美術館開設準備室
A5: 2002 | B5: 決算額 | C5: 投資的収入 | D5: イニシャル | E5: 基金収入 | F5: 預金利子 | G5: 2058 | H5: 美術品取得基金に係る預金利子 | I5: 美術館開設準備室
A6: 2003 | B6: 決算額 | C6: 投資的収入 | D6: イニシャル | E6: 基金収入 | F6: 預金利子 | G6: 1544 | H6: 美術品取得基金に係る預金利子 | I6: 美術館開設準備室
A7: 2004 | B7: 決算額 | C7: 投資的収入 | D7: イニシャル | E7: 基金収入 | F7: 預金利子 | G7: 798 | H7: 美術品取得基金に係る預金利子 | I7: 美術館開設準備室
A8: 2005 | B8: 決算額 | C8: 投資的収入 | D8: イニシャル | E8: 基金収入 | F8: 預金利子 | G8: 1256 | H8: 美術品取得基金に係る預金利子 | I8: 美術館開設準備室
A9: 2006 | B9: 決算額 | C9: 投資的収入 | D9: イニシャル | E9: 基金収入 | F9: 預金利子 | G9: 417 | H9: 美術品取得基金に係る預金利子 | I9: 美術館開設準備室
A10: 2007 | B10: 決算額 | C10: 投資的収入 | D10: ランニング | E10: 基金収入 | F10: 預金利子 | G10: 888 | H10: 美術品取得基金に係る預金利子 | I10: 美術館運営課
A11: 2007 | B11: 決算額 | C11: 経常的収入 | D11: ランニング | E11: 助成金・寄付金 | F11: 助成金 | G11: 3500000 | H11: 若林奮展に係る助成金 | I11: 美術館運営課
A12: 2007 | B12: 決算額 | C12: 経常的収入 | D12: ランニング | E12: 美術館使用料 | F12: 観覧料 | G12: 73105250 | I12: 美術館運営課
A13: 2007 | B13: 決算額 | C13: 経常的収入 | D13: ランニング | E13: 美術館使用料 | F13: 駐車場使用料 | G13: 13289100 | I13: 美術館運営課
A14: 2008 | B14: 決算額 | C14: 投資的収入 | D14: ランニング | E14: 基金収入 | F14: 預金利子 | G14: 709 | H14: 美術品取得基金に係る預金利子 | I14: 美術館運営課
A15: 2008 | B15: 決算額 | C15: 経常的収入 | D15: ランニング | E15: 美術館使用料 | F15: 観覧料 | G15: 36660110 | I15: 美術館運営課
A16: 2008 | B16: 決算額 | C16: 経常的収入 | D16: ランニング | E16: 美術館使用料 | F16: 駐車場使用料 | G16: 9990950 | I16: 美術館運営課
A17: 2009 | B17: 決算額 | C17: 投資的収入 | D17: ランニング | E17: 基金収入 | F17: 預金利子 | G17: 1496 | H17: 美術品取得基金に係る預金利子 | I17: 美術館運営課
A18: 2009 | B18: 決算額 | C18: 経常的収入 | D18: ランニング | E18: 美術館使用料 | F18: 観覧料 | G18: =36006150+12000 -> 36018150 | H18: 特別利用料を含む | I18: 美術館運営課
A19: 2009 | B19: 決算額 | C19: 経常的収入 | D19: ランニング | E19: 美術館使用料 | F19: 駐車場使用料 | G19: 11762350 | I19: 美術館運営課
A20: 2010 | B20: 決算額 | C20: 投資的収入 | D20: ランニング | E20: 基金収入 | F20: 預金利子 | G20: 441 | H20: 美術品取得基金に係る預金利子 | I20: 美術館運営課
A21: 2010 | B21: 決算額 | C21: 経常的収入 | D21: ランニング | E21: 美術館使用料 | F21: 観覧料 | G21: 35308600 | I21: 美術館運営課
A22: 2010 | B22: 決算額 | C22: 経常的収入 | D22: ランニング | E22: 美術館使用料 | F22: 駐車場使用料 | G22: 11610950 | I22: 美術館運営課
A23: 2011 | B23: 決算額 | C23: 投資的収入 | D23: ランニング | E23: 基金収入 | F23: 預金利子 | G23: 704 | H23: 美術品取得基金に係る預金利子 | I23: 美術館運営課
A24: 2011 | B24: 決算額 | C24: 経常的収入 | D24: ランニング | E24: 美術館使用料 | F24: 観覧料 | G24: =37709880+8000 -> 37717880 | H24: 特別利用料を含む | I24: 美術館運営課
A25: 2011 | B25: 決算額 | C25: 経常的収入 | D25: ランニング | E25: 美術館使用料 | F25: 駐車場使用料 | G25: 10795350 | I25: 美術館運営課
A26: 2012 | B26: 決算額 | C26: 投資的収入 | D26: ランニング | E26: 基金収入 | F26: 預金利子 | G26: 56 | H26: 美術品取得基金に係る預金利子 | I26: 美術館運営課
A27: 2012 | B27: 決算額 | C27: 経常的収入 | D27: ランニング | E27: 美術館使用料 | F27: 観覧料 | G27: =32571950+10000 -> 32581950 | H27: 特別利用料を含む | I27: 美術館運営課
A28: 2012 | B28: 決算額 | C28: 経常的収入 | D28: ランニング | E28: 美術館使用料 | F28: 駐車場使用料 | G28: 11629100 | I28: 美術館運営課
A29: 2013 | B29: 決算額 | C29: 投資的収入 | D29: ランニング | E29: 基金収入 | F29: 預金利子 | G29: 101 | H29: 美術品取得基金に係る預金利子 | I29: 美術館運営課
A30: 2013 | B30: 決算額 | C30: 経常的収入 | D30: ランニング | E30: 美術館使用料 | F30: 観覧料 | G30: =33623110+16000 -> 33639110 | H30: 特別利用料を含む | I30: 美術館運営課
A31: 2013 | B31: 決算額 | C31: 経常的収入 | D31: ランニング | E31: 美術館使用料 | F31: 駐車場使用料 | G31: 12225850 | I31: 美術館運営課
A32: 2014 | B32: 決算額 | C32: 投資的収入 | D32: ランニング | E32: 基金収入 | F32: 預金利子 | G32: 92 | H32: 美術品取得基金に係る預金利子 | I32: 美術館運営課
A33: 2014 | B33: 決算額 | C33: 経常的収入 | D33: ランニング | E33: 美術館使用料 | F33: 観覧料 | G33: =37781010+12360 -> 37793370 | H33: 特別利用料を含む | I33: 美術館運営課
A34: 2014 | B34: 決算額 | C34: 経常的収入 | D34: ランニング | E34: 美術館使用料 | F34: 駐車場使用料 | G34: 12202680 | I34: 美術館運営課
A35: 2015 | B35: 決算額 | C35: 投資的収入 | D35: ランニング | E35: 基金収入 | F35: 預金利子 | G35: 94 | H35: 美術品取得基金に係る預金利子 | I35: 美術館運営課
A36: 2015 | B36: 決算額 | C36: 経常的収入 | D36: ランニング | E36: 美術館使用料 | F36: 観覧料 | G36: =44117940+12360 -> 44130300 | H36: 特別利用料を含む | I36: 美術館運営課
A37: 2015 | B37: 決算額 | C37: 経常的収入 | D37: ランニング | E37: 美術館使用料 | F37: 駐車場使用料 | G37: 12239780 | I37: 美術館運営課
A38: 2016 | B38: 決算額 | C38: 投資的収入 | D38: ランニング | E38: 基金収入 | F38: 預金利子 | G38: 37 | H38: 美術品取得基金に係る預金利子 | I38: 美術館運営課
A39: 2016 | B39: 決算額 | C39: 経常的収入 | D39: ランニング | E39: 美術館使用料 | F39: 観覧料 | G39: =42099980+30900 -> 42130880 | H39: 特別利用料を含む | I39: 美術館運営課
A40: 2016 | B40: 決算額 | C40: 経常的収入 | D40: ランニング | E40: 美術館使用料 | F40: 駐車場使用料 | G40: 12117670 | I40: 美術館運営課
A41: 2017 | B41: 決算額 | C41: 投資的収入 | D41: ランニング | E41: 基金収入 | F41: 預金利子 | G41: 36 | H41: 美術品取得基金に係る預金利子 | I41: 美術館運営課
A42: 2017 | B42: 決算額 | C42: 経常的収入 | D42: ランニング | E42: 助成金・寄付金 | F42: 助成金 | G42: 5000000 | H42: 美術でめぐる日本の海展に係る助成金 | I42: 美術館運営課
A43: 2017 | B43: 決算額 | C43: 経常的収入 | D43: ランニング | E43: 美術館使用料 | F43: 観覧料 | G43: =46126550+43260 -> 46169810 | H43: 特別利用料を含む | I43: 美術館運営課
A44: 2017 | B44: 決算額 | C44: 経常的収入 | D44: ランニング | E44: 美術館使用料 | F44: 駐車場使用料 | G44: 13069210 | I44: 美術館運営課
A45: 2018 | B45: 決算額 | C45: 投資的収入 | D45: ランニング | E45: 基金収入 | F45: 預金利子 | G45: 36 | H45: 美術品取得基金に係る預金利子 | I45: 美術館運営課
A46: 2018 | B46: 決算額 | C46: 経常的収入 | D46: ランニング | E46: 美術館使用料 | F46: 観覧料 | G46: =43676010+4120 -> 43680130 | H46: 特別利用料を含む | I46: 美術館運営課
A47: 2018 | B47: 決算額 | C47: 経常的収入 | D47: ランニング | E47: 美術館使用料 | F47: 駐車場使用料 | G47: 11726640 | I47: 美術館運営課
A48: 2019 | B48: 予算額 | C48: 投資的収入 | D48: ランニング | E48: 基金収入 | F48: 預金利子 | G48: 1000 | H48: 美術品取得基金に係る預金利子 | I48: 美術館運営課
A49: 2019 | B49: 予算額 | C49: 経常的収入 | D49: ランニング | E49: 助成金・寄付金 | F49: 寄付金 | G49: 1040000 | H49: 美術品等取得基金への寄付 | I49: 美術館運営課
A50: 2019 | B50: 予算額 | C50: 経常的収入 | D50: ランニング | E50: 助成金・寄付金 | F50: 助成金 | G50: 4275000 | H50: サラ・ベルナール展に係る助成金 | I50: 美術館運営課
A51: 2019 | B51: 予算額 | C51: 経常的収入 | D51: ランニング | E51: 美術館使用料 | F51: 観覧料 | G51: =48628000+43000 -> 48671000 | H51: 特別利用料を含む | I51: 美術館運営課
A52: 2019 | B52: 予算額 | C52: 経常的収入 | D52: ランニング | E52: 美術館使用料 | F52: 駐車場使用料 | G52: 12283000 | I52: 美術館運営課
A53: 2020 | B53: 予算額 | C53: 投資的収入 | D53: ランニング | E53: 基金収入 | F53: 預金利子 | G53: 1000 | H53: 美術品取得基金に係る預金利子 | I53: 美術館運営課
A54: 2020 | B54: 予算額 | C54: 経常的収入 | D54: ランニング | E54: 助成金・寄付金 | F54: 寄付金 | G54: 1775000 | H54: 美術品等取得基金への寄付 | I54: 美術館運営課
A55: 2020 | B55: 予算額 | C55: 経常的収入 | D55: ランニング | E55: 美術館使用料 | F55: 観覧料 | G55: =54759000+4000 -> 54763000 | H55: 特別利用料を含む | I55: 美術館運営課
A56: 2020 | B56: 予算額 | C56: 経常的収入 | D56: ランニング | E56: 美術館使用料 | F56: 駐車場使用料 | G56: 12956000 | I56: 美術館運営課

Sheet 歳出
A1: ID | B1: 年度 | C1: 性質別種別 | D1: 初期運用の別 | E1: 決算見込の別 | F1: 費目1 | G1: 費目2 | H1: 金額 | I1: 備考 | J1: 担当部署
A2: 1 | B2: 1999 | C2: 経常的経費 | D2: イニシャル・コスト | E2: 決算額 | F2: 給与・報酬 | G2: 各種委員報酬 | H2: 6524400 | I2: 専門委員4人・基本計画策定委員のべ30人 | J2: 生涯学習課
A3: 2 | B3: 1999 | C3: 経常的経費 | D3: イニシャル・コスト | E3: 決算額 | F3: 給与・報酬 | G3: 美術品選定評価委員等謝礼 | H3: 150000 | I3: 5人 | J3: 生涯学習課
A4: 3 | B4: 1999 | C4: 経常的経費 | D4: イニシャル・コスト | E4: 決算額 | F4: 委託料 | G4: 業務委託料 | H4: 2992500 | I4: 絵画修復費 | J4: 生涯学習課
A5: 4 | B5: 1999 | C5: 経常的経費 | D5: イニシャル・コスト | E5: 決算額 | F5: 委託料 | G5: 業務委託料 | H5: 15150625 | I5: 基本計画策定、美術品保管運搬等 | J5: 生涯学習課
A6: 5 | B6: 1999 | C6: 投資的経費 | D6: イニシャル・コスト | E6: 決算額 | F6: 美術品等購入費 | G6: 美術品等購入費 | H6: 99991000 | J6: 生涯学習課
A7: 6 | B7: 1999 | C7: 経常的経費 | D7: イニシャル・コスト | E7: 決算額 | F7: 事務費 | G7: その他事務費 | H7: 4222482 | J7: 生涯学習課
A8: 7 | B8: 2000 | C8: 経常的経費 | D8: イニシャル・コスト | E8: 決算額 | F8: 給与・報酬 | G8: 各種委員報酬 | H8: 6134400 | I8: 美術作品研究専門委員4人 | J8: 生涯学習課
A9: 8 | B9: 2000 | C9: 経常的経費 | D9: イニシャル・コスト | E9: 決算額 | F9: 給与・報酬 | G9: 非常勤職員賃金 | H9: 2112440 | I9: 臨時職員賃金5人 | J9: 生涯学習課
A10: 9 | B10: 2000 | C10: 経常的経費 | D10: イニシャル・コスト | E10: 決算額 | F10: 給与・報酬 | G10: 美術品選定評価委員等謝礼 | H10: 190000 | I10: 5人 | J10: 生涯学習課
A11: 10 | B11: 2000 | C11: 経常的経費 | D11: イニシャル・コスト | E11: 決算額 | F11: 委託料 | G11: 業務委託料 | H11: 2993340 | I11: 絵画修復 | J11: 生涯学習課
A12: 11 | B12: 2000 | C12: 経常的経費 | D12: イニシャル・コスト | E12: 決算額 | F12: 委託料 | G12: 業務委託料 | H12: 21430565 | I12: 浅井閑右衛門ビデオ制作等委託料 | J12: 生涯学習課
A13: 12 | B13: 2000 | C13: 投資的経費 | D13: イニシャル・コスト | E13: 決算額 | F13: 美術品等購入費 | G13: 美術品等購入費 | H13: 200372113 | J13: 生涯学習課
A14: 13 | B14: 2000 | C14: 経常的経費 | D14: イニシャル・コスト | E14: 決算額 | F14: 事務費 | G14: その他事務費 | H14: 2736456 | J14: 生涯学習課
A15: 14 | B15: 2001 | C15: 経常的経費 | D15: イニシャル・コスト | E15: 決算額 | F15: 給与・報酬 | G15: 各種委員報酬 | H15: 6134400 | I15: 美術作品研究専門委員4人 | J15: 美術館開設準備室
A16: 15 | B16: 2001 | C16: 経常的経費 | D16: イニシャル・コスト | E16: 決算額 | F16: 給与・報酬 | G16: 非常勤職員賃金 | H16: 2341980 | I16: 臨時職員賃金 | J16: 美術館開設準備室
A17: 16 | B17: 2001 | C17: 経常的経費 | D17: イニシャル・コスト | E17: 決算額 | F17: 給与・報酬 | G17: 美術品選定評価委員等謝礼 | H17: 4129000 | J17: 美術館開設準備室
A18: 17 | B18: 2001 | C18: 経常的経費 | D18: イニシャル・コスト | E18: 決算額 | F18: 委託料 | G18: 業務委託料 | H18: 2853480 | I18: 絵画修復 | J18: 美術館開設準備室
A19: 18 | B19: 2001 | C19: 経常的経費 | D19: イニシャル・コスト | E19: 決算額 | F19: 委託料 | G19: 業務委託料 | H19: 16833949 | I19: 各種多様 | J19: 美術館開設準備室
A20: 19 | B20: 2001 | C20: 投資的経費 | D20: イニシャル・コスト | E20: 決算額 | F20: 美術品等購入費 | G20: 美術品等購入費 | H20: 314869495 | J20: 美術館開設準備室
A21: 20 | B21: 2001 | C21: 経常的経費 | D21: イニシャル・コスト | E21: 決算額 | F21: 事務費 | G21: その他事務費 | H21: 5539112 | J21: 美術館開設準備室
A22: 21 | B22: 2002 | C22: 経常的経費 | D22: イニシャル・コスト | E22: 決算額 | F22: 給与・報酬 | G22: 各種委員報酬 | H22: 6780000 | I22: 美術作品研究専門委員6人 | J22: 美術館開設準備室
A23: 22 | B23: 2002 | C23: 経常的経費 | D23: イニシャル・コスト | E23: 決算額 | F23: 給与・報酬 | G23: 非常勤職員賃金 | H23: 2654420 | I23: 臨時職員賃金 | J23: 美術館開設準備室
A24: 23 | B24: 2002 | C24: 経常的経費 | D24: イニシャル・コスト | E24: 決算額 | F24: 給与・報酬 | G24: 美術品選定評価委員等謝礼 | H24: 1175000 | J24: 美術館開設準備室
A25: 24 | B25: 2002 | C25: 経常的経費 | D25: イニシャル・コスト | E25: 決算額 | F25: 委託料 | G25: 業務委託料 | H25: 66693676 | I25: 各種多様 | J25: 美術館開設準備室
A26: 25 | B26: 2002 | C26: 投資的経費 | D26: イニシャル・コスト | E26: 決算額 | F26: 美術品等購入費 | G26: 美術品等購入費 | H26: 311961915 | J26: 美術館開設準備室
A27: 26 | B27: 2002 | C27: 経常的経費 | D27: イニシャル・コスト | E27: 決算額 | F27: 事務費 | G27: その他事務費 | H27: 4626411 | J27: 美術館開設準備室
A28: 27 | B28: 2003 | C28: 経常的経費 | D28: イニシャル・コスト | E28: 決算額 | F28: 給与・報酬 | G28: 各種委員報酬 | H28: 6780000 | I28: 美術作品研究等専門委員6人 | J28: 美術館開設準備室
A29: 28 | B29: 2003 | C29: 経常的経費 | D29: イニシャル・コスト | E29: 決算額 | F29: 給与・報酬 | G29: 非常勤職員賃金 | H29: 3258206 | I29: 臨時職員賃金 | J29: 美術館開設準備室
A30: 29 | B30: 2003 | C30: 経常的経費 | D30: イニシャル・コスト | E30: 決算額 | F30: 給与・報酬 | G30: 美術品選定評価委員等謝礼 | H30: 920000 | J30: 美術館開設準備室
A31: 30 | B31: 2003 | C31: 経常的経費 | D31: イニシャル・コスト | E31: 決算額 | F31: 委託料 | G31: 業務委託料 | H31: 27754299 | I31: 各種多様 | J31: 美術館開設準備室
A32: 31 | B32: 2003 | C32: 投資的経費 | D32: イニシャル・コスト | E32: 決算額 | F32: 美術品等購入費 | G32: 美術品等購入費 | H32: 399993500 | J32: 美術館開設準備室
A33: 32 | B33: 2003 | C33: 経常的経費 | D33: イニシャル・コスト | E33: 決算額 | F33: 備品購入費 | G33: 備品購入費 | H33: 1176223 | I33: 資料整理用等備品購入費 | J33: 美術館開設準備室
A34: 33 | B34: 2003 | C34: 経常的経費 | D34: イニシャル・コスト | E34: 決算額 | F34: 事務費 | G34: その他事務費 | H34: 5603735 | J34: 美術館開設準備室
A35: 34 | B35: 2004 | C35: 経常的経費 | D35: イニシャル・コスト | E35: 決算額 | F35: 給与・報酬 | G35: 各種委員報酬 | H35: 6134400 | I35: 美術作品研究等専門委員6人 | J35: 美術館開設準備室
A36: 35 | B36: 2004 | C36: 経常的経費 | D36: イニシャル・コスト | E36: 決算額 | F36: 給与・報酬 | G36: 非常勤職員賃金 | H36: 5134765 | I36: 臨時職員賃金 | J36: 美術館開設準備室
A37: 36 | B37: 2004 | C37: 経常的経費 | D37: イニシャル・コスト | E37: 決算額 | F37: 給与・報酬 | G37: 美術品選定評価委員等謝礼 | H37: 1275000 | J37: 美術館開設準備室
A38: 37 | B38: 2004 | C38: 経常的経費 | D38: イニシャル・コスト | E38: 決算額 | F38: 委託料 | G38: 業務委託料 | H38: 70930766 | I38: 各種多様 | J38: 美術館開設準備室
A39: 38 | B39: 2004 | C39: 投資的経費 | D39: イニシャル・コスト | E39: 決算額 | F39: 美術品等購入費 | G39: 美術品等購入費 | H39: 200000000 | I39: 積立金とりくずし額から類推 | J39: 美術館開設準備室
A40: 39 | B40: 2004 | C40: 経常的経費 | D40: イニシャル・コスト | E40: 決算額 | F40: 備品購入費 | G40: 備品購入費 | H40: 3250516 | I40: 積立金とりくずし額から類推 | J40: 美術館開設準備室
A41: 40 | B41: 2004 | C41: 経常的経費 | D41: イニシャル・コスト | E41: 決算額 | F41: 事務費 | G41: その他事務費 | H41: 5873755 | J41: 美術館開設準備室
A42: 41 | B42: 2004 | C42: 投資的経費 | D42: イニシャル・コスト | E42: 決算額 | F42: 建設事業費 | G42: 委託料 | H42: 830000 | I42: 工事管理業務委託 | J42: 美術館開設準備室
A43: 42 | B43: 2004 | C43: 投資的経費 | D43: イニシャル・コスト | E43: 決算額 | F43: 建設事業費 | G43: 工事請負費 | H43: 233447857 | J43: 美術館開設準備室
A44: 43 | B44: 2004 | C44: 投資的経費 | D44: イニシャル・コスト | E44: 決算額 | F44: 建設事業費 | G44: その他事務費 | H44: 557738 | J44: 美術館開設準備室
A45: 44 | B45: 2005 | C45: 経常的経費 | D45: イニシャル・コスト | E45: 決算額 | F45: 給与・報酬 | G45: 美術品選定評価委員等謝礼 | H45: 520000 | I45: 美術品選定評価、レストラン事業者選考、美術館活動検討 | J45: 美術館開設準備室
A46: 45 | B46: 2005 | C46: 経常的経費 | D46: イニシャル・コスト | E46: 決算額 | F46: 給与・報酬 | G46: 非常勤職員賃金 | H46: 6134400 | I46: 美術作品研究等アドバイザー4人 | J46: 美術館開設準備室
A47: 46 | B47: 2005 | C47: 経常的経費 | D47: イニシャル・コスト | E47: 決算額 | F47: 給与・報酬 | G47: 非常勤職員賃金 | H47: 6817340 | I47: 臨時職員賃金 | J47: 美術館開設準備室
A48: 47 | B48: 2005 | C48: 経常的経費 | D48: イニシャル・コスト | E48: 決算額 | F48: 給与・報酬 | G48: 謝礼金 | H48: 1394800 | I48: 企画展作家謝礼等 | J48: 美術館開設準備室
A49: 48 | B49: 2005 | C49: 経常的経費 | D49: イニシャル・コスト | E49: 決算額 | F49: 委託料 | G49: 業務委託料 | H49: 86733400 | I49: 各種多様 | J49: 美術館開設準備室
A50: 49 | B50: 2005 | C50: 投資的経費 | D50: イニシャル・コスト | E50: 決算額 | F50: 美術品等購入費 | G50: 美術品等購入費 | H50: 100000000 | I50: 積立金とりくずし額から類推 | J50: 美術館開設準備室
A51: 50 | B51: 2005 | C51: 経常的経費 | D51: イニシャル・コスト | E51: 決算額 | F51: 備品購入費 | G51: 備品購入費 | H51: 3616235 | I51: 積立金とりくずし額から類推 | J51: 美術館開設準備室
A52: 51 | B52: 2005 | C52: 経常的経費 | D52: イニシャル・コスト | E52: 決算額 | F52: 事務費 | G52: その他事務費 | H52: 7006662 | J52: 美術館開設準備室
A53: 52 | B53: 2005 | C53: 投資的経費 | D53: イニシャル・コスト | E53: 決算額 | F53: 建設事業費 | G53: 委託料 | H53: 50350000 | I53: 工事管理業務委託 | J53: 美術館開設準備室
A54: 53 | B54: 2005 | C54: 投資的経費 | D54: イニシャル・コスト | E54: 決算額 | F54: 建設事業費 | G54: 工事請負費 | H54: 2306370000 | J54: 美術館開設準備室
A55: 54 | B55: 2005 | C55: 投資的経費 | D55: イニシャル・コスト | E55: 決算額 | F55: 建設事業費 | G55: 負担金 | H55: 7946400 | I55: 水道加入金・下水道建設協力金 | J55: 美術館開設準備室
A56: 55 | B56: 2005 | C56: 投資的経費 | D56: イニシャル・コスト | E56: 決算額 | F56: 建設事業費 | G56: その他事務費 | H56: 174692 | J56: 美術館開設準備室
A57: 56 | B57: 2006 | C57: 経常的経費 | D57: イニシャル・コスト | E57: 決算額 | F57: 給与・報酬 | G57: 美術品選定評価委員等謝礼 | H57: 182000 | I57: 美術品選定評価、ミュージアムショップ事業者選考 | J57: 美術館開設準備室
A58: 57 | B58: 2006 | C58: 経常的経費 | D58: イニシャル・コスト | E58: 決算額 | F58: 給与・報酬 | G58: 非常勤職員賃金 | H58: 5231682 | I58: 美術作品研究等アドバイザー2人と非常勤学芸員賃金 | J58: 美術館開設準備室
A59: 58 | B59: 2006 | C59: 経常的経費 | D59: イニシャル・コスト | E59: 決算額 | F59: 給与・報酬 | G59: 非常勤職員賃金 | H59: 7976199 | I59: 臨時職員賃金 | J59: 美術館開設準備室
A60: 59 | B60: 2006 | C60: 経常的経費 | D60: イニシャル・コスト | E60: 決算額 | F60: 給与・報酬 | G60: 謝礼金 | H60: 164720 | I60: ボランティア謝礼 | J60: 美術館開設準備室
A61: 60 | B61: 2006 | C61: 経常的経費 | D61: イニシャル・コスト | E61: 決算額 | F61: 委託料 | G61: 業務委託料 | H61: 184148500 | I61: 各種多様 | J61: 美術館開設準備室
A62: 61 | B62: 2006 | C62: 経常的経費 | D62: イニシャル・コスト | E62: 決算額 | F62: 備品購入費 | G62: 備品購入費 | H62: 5010680 | I62: 図書購入費 | J62: 美術館開設準備室
A63: 62 | B63: 2006 | C63: 経常的経費 | D63: イニシャル・コスト | E63: 決算額 | F63: 管理事業費 | G63: 管理事業費 | H63: 31945412 | I63: 管理費 | J63: 美術館開設準備室
A64: 63 | B64: 2006 | C64: 経常的経費 | D64: イニシャル・コスト | E64: 決算額 | F64: 運営事業費 | G64: 運営事業 | H64: 1643860 | I64: 旅費 | J64: 美術館開設準備室
A65: 64 | B65: 2006 | C65: 経常的経費 | D65: イニシャル・コスト | E65: 決算額 | F65: 運営事業費 | G65: 運営事業 | H65: 2767872 | I65: 消耗品費 | J65: 美術館開設準備室
A66: 65 | B66: 2006 | C66: 経常的経費 | D66: イニシャル・コスト | E66: 決算額 | F66: 運営事業費 | G66: 運営事業 | H66: 1823897 | I66: 印刷製本費 | J66: 美術館開設準備室
A67: 66 | B67: 2006 | C67: 経常的経費 | D67: イニシャル・コスト | E67: 決算額 | F67: 管理事業費 | G67: 管理事業費 | H67: 1854656 | I67: 通信運搬費 | J67: 美術館開設準備室
A68: 67 | B68: 2006 | C68: 経常的経費 | D68: イニシャル・コスト | E68: 決算額 | F68: 運営事業費 | G68: 運営事業 | H68: 1177200 | I68: 筆耕翻訳料 | J68: 美術館開設準備室
A69: 68 | B69: 2006 | C69: 経常的経費 | D69: イニシャル・コスト | E69: 決算額 | F69: 管理事業費 | G69: 管理事業費 | H69: 472500 | I69: 土地建物借上料 | J69: 美術館開設準備室
A70: 69 | B70: 2006 | C70: 経常的経費 | D70: イニシャル・コスト | E70: 決算額 | F70: 運営事業費 | G70: 運営事業 | H70: 630000 | I70: 広告料 | J70: 美術館開設準備室
A71: 70 | B71: 2006 | C71: 経常的経費 | D71: イニシャル・コスト | E71: 決算額 | F71: 管理事業費 | G71: 管理事業費 | H71: 49212 | I71: 建物総合損害共済分担金 | J71: 美術館開設準備室
A72: 71 | B72: 2006 | C72: 経常的経費 | D72: イニシャル・コスト | E72: 決算額 | F72: 管理事業費 | G72: 管理事業費 | H72: 7521 | I72: 自動車損害共済分担金 | J72: 美術館開設準備室
A73: 72 | B73: 2006 | C73: 経常的経費 | D73: イニシャル・コスト | E73: 決算額 | F73: 管理事業費 | G73: 管理事業費 | H73: 890550 | I73: その他事務費 | J73: 美術館開設準備室
A74: 73 | B74: 2006 | C74: 投資的経費 | D74: イニシャル・コスト | E74: 決算額 | F74: 建設事業費 | G74: 委託料 | H74: 28079565 | I74: 工事管理業務委託、その他 | J74: 美術館開設準備室
A75: 74 | B75: 2006 | C75: 投資的経費 | D75: イニシャル・コスト | E75: 決算額 | F75: 建設事業費 | G75: 工事請負費 | H75: 1520341104 | J75: 美術館開設準備室
A76: 75 | B76: 2006 | C76: 投資的経費 | D76: イニシャル・コスト | E76: 決算額 | F76: 建設事業費 | G76: 備品整備 | H76: 221064165 | I76: 建物に付随する備品整備 | J76: 美術館開設準備室
A77: 76 | B77: 2006 | C77: 投資的経費 | D77: イニシャル・コスト | E77: 決算額 | F77: 建設事業費 | G77: 負担金 | H77: 27961257 | I77: 電線地中化実施に係る負担金 | J77: 美術館開設準備室
A78: 77 | B78: 2006 | C78: 投資的経費 | D78: イニシャル・コスト | E78: 決算額 | F78: 建設事業費 | G78: その他事務費 | H78: 170224 | J78: 美術館開設準備室
A79: 78 | B79: 2006 | C79: 投資的経費 | D79: イニシャル・コスト | E79: 決算額 | F79: 建設事業費 | G79: 備品整備 | H79: 11587800 | I79: 屋外彫刻設置委託料 | J79: 美術館開設準備室
A80: 79 | B80: 2006 | C80: 投資的経費 | D80: イニシャル・コスト | E80: 決算額 | F80: 建設事業費 | G80: 備品整備 | H80: 169700362 | I80: 開設に必要な備品整備 | J80: 美術館開設準備室
A81: 80 | B81: 2007 | C81: 経常的経費 | D81: ランニング・コスト | E81: 決算額 | F81: 給与・報酬 | G81: 職員給与費 | H81: 114631952 | I81: 13人 | J81: 美術館運営課
A82: 81 | B82: 2007 | C82: 経常的経費 | D82: ランニング・コスト | E82: 決算額 | F82: 給与・報酬 | G82: 美術品選定評価委員等謝礼 | H82: 586900 | I82: 美術品選定評価、教育普及、美術館評価 | J82: 美術館運営課
A83: 82 | B83: 2007 | C83: 経常的経費 | D83: ランニング・コスト | E83: 決算額 | F83: 給与・報酬 | G83: 非常勤職員賃金 | H83: 16576854 | I83: 美術作品研究等アドバイザー、学芸員、司書、館長、副館長、設備日常監視 | J83: 美術館運営課
A84: 83 | B84: 2007 | C84: 経常的経費 | D84: ランニング・コスト | E84: 決算額 | F84: 運営事業費 | G84: 展覧会事業 | H84: 86813283 | J84: 美術館運営課
A85: 84 | B85: 2007 | C85: 経常的経費 | D85: ランニング・コスト | E85: 決算額 | F85: 運営事業費 | G85: 教育普及事業 | H85: 5259571 | J85: 美術館運営課
A86: 85 | B86: 2007 | C86: 経常的経費 | D86: ランニング・コスト | E86: 決算額 | F86: 運営事業費 | G86: 美術品収集管理保管事業 | H86: =5260303+57970+276530 -> 5594803 | I86: 基金積立金を除く | J86: 美術館運営課
A87: 86 | B87: 2007 | C87: 経常的経費 | D87: ランニング・コスト | E87: 決算額 | F87: 運営事業費 | G87: 運営事業 | H87: 12825164 | J87: 美術館運営課
A88: 87 | B88: 2007 | C88: 経常的経費 | D88: ランニング・コスト | E88: 決算額 | F88: 運営事業費 | G88: 開館記念イベント事業 | H88: 4675935 | J88: 美術館運営課
A89: 88 | B89: 2007 | C89: 経常的経費 | D89: ランニング・コスト | E89: 決算額 | F89: 管理事業費 | G89: 管理事業費 | H89: 210155282 | J89: 美術館運営課
A90: 89 | B90: 2008 | C90: 経常的経費 | D90: ランニング・コスト | E90: 決算額 | F90: 給与・報酬 | G90: 職員給与費 | H90: 109998091 | I90: 14人 | J90: 美術館運営課
A91: 90 | B91: 2008 | C91: 経常的経費 | D91: ランニング・コスト | E91: 決算額 | F91: 給与・報酬 | G91: 美術品選定評価委員等謝礼 | H91: 391000 | I91: 美術品選定評価、教育普及、美術館評価 | J91: 美術館運営課
A92: 91 | B92: 2008 | C92: 経常的経費 | D92: ランニング・コスト | E92: 決算額 | F92: 給与・報酬 | G92: 非常勤職員賃金 | H92: 16308584 | I92: 美術作品研究等アドバイザー、学芸員、司書、館長、設備日常監視、教育普及推進員 | J92: 美術館運営課
A93: 92 | B93: 2008 | C93: 経常的経費 | D93: ランニング・コスト | E93: 決算額 | F93: 運営事業費 | G93: 展覧会事業 | H93: 81742942 | J93: 美術館運営課
A94: 93 | B94: 2008 | C94: 経常的経費 | D94: ランニング・コスト | E94: 決算額 | F94: 運営事業費 | G94: 教育普及事業 | H94: 7023964 | J94: 美術館運営課
A95: 94 | B95: 2008 | C95: 経常的経費 | D95: ランニング・コスト | E95: 決算額 | F95: 運営事業費 | G95: 美術品収集管理保管事業 | H95: =133480+402940+5816935 -> 6353355 | I95: 基金積立金を除く | J95: 美術館運営課
A96: 95 | B96: 2008 | C96: 経常的経費 | D96: ランニング・コスト | E96: 決算額 | F96: 運営事業費 | G96: 運営事業 | H96: 17019655 | J96: 美術館運営課
A97: 96 | B97: 2008 | C97: 経常的経費 | D97: ランニング・コスト | E97: 決算額 | F97: 管理事業費 | G97: 管理事業費 | H97: 213529476 | J97: 美術館運営課
A98: 97 | B98: 2009 | C98: 経常的経費 | D98: ランニング・コスト | E98: 決算額 | F98: 給与・報酬 | G98: 職員給与費 | H98: 102662596 | I98: １２人 | J98: 美術館運営課
A99: 98 | B99: 2009 | C99: 経常的経費 | D99: ランニング・コスト | E99: 決算額 | F99: 給与・報酬 | G99: 美術品選定評価委員等謝礼 | H99: 521000 | I99: 美術品選定評価、教育普及、美術館評価 | J99: 美術館運営課
A100: 99 | B100: 2009 | C100: 経常的経費 | D100: ランニング・コスト | E100: 決算額 | F100: 給与・報酬 | G100: 非常勤職員賃金 | H100: 19314025 | I100: 美術作品研究等アドバイザー、学芸員、司書、館長、設備日常監視、教育普及推進員 | J100: 美術館運営課
A101: 100 | B101: 2009 | C101: 経常的経費 | D101: ランニング・コスト | E101: 決算額 | F101: 運営事業費 | G101: 展覧会事業 | H101: 80053988 | J101: 美術館運営課
A102: 101 | B102: 2009 | C102: 経常的経費 | D102: ランニング・コスト | E102: 決算額 | F102: 運営事業費 | G102: 教育普及事業 | H102: 8294820 | J102: 美術館運営課
A103: 102 | B103: 2009 | C103: 経常的経費 | D103: ランニング・コスト | E103: 決算額 | F103: 運営事業費 | G103: 美術品収集管理保管事業 | H103: =6777998-1496 -> 6776502 | I103: 基金積立金を除く | J103: 美術館運営課
A104: 103 | B104: 2009 | C104: 経常的経費 | D104: ランニング・コスト | E104: 決算額 | F104: 運営事業費 | G104: 運営事業 | H104: 14923856 | J104: 美術館運営課
A105: 104 | B105: 2009 | C105: 経常的経費 | D105: ランニング・コスト | E105: 決算額 | F105: 管理事業費 | G105: 管理事業費 | H105: 195052822 | J105: 美術館運営課
A106: 105 | B106: 2010 | C106: 経常的経費 | D106: ランニング・コスト | E106: 決算額 | F106: 給与・報酬 | G106: 職員給与費 | H106: 91212008 | I106: 11人 | J106: 美術館運営課
A107: 106 | B107: 2010 | C107: 経常的経費 | D107: ランニング・コスト | E107: 決算額 | F107: 給与・報酬 | G107: 美術品選定評価委員等謝礼 | H107: 495000 | I107: 美術品選定評価、教育普及、美術館評価 | J107: 美術館運営課
A108: 107 | B108: 2010 | C108: 経常的経費 | D108: ランニング・コスト | E108: 決算額 | F108: 給与・報酬 | G108: 非常勤職員賃金 | H108: 16500619 | I108: 学芸員、司書、館長、設備日常監視、教育普及推進員 | J108: 美術館運営課
A109: 108 | B109: 2010 | C109: 経常的経費 | D109: ランニング・コスト | E109: 決算額 | F109: 運営事業費 | G109: 展覧会事業 | H109: 77168182 | J109: 美術館運営課
A110: 109 | B110: 2010 | C110: 経常的経費 | D110: ランニング・コスト | E110: 決算額 | F110: 運営事業費 | G110: 教育普及事業 | H110: 7097989 | J110: 美術館運営課
A111: 110 | B111: 2010 | C111: 経常的経費 | D111: ランニング・コスト | E111: 決算額 | F111: 運営事業費 | G111: 美術品収集管理保管事業 | H111: =5494450-441 -> 5494009 | I111: 基金積立金を除く | J111: 美術館運営課
A112: 111 | B112: 2010 | C112: 経常的経費 | D112: ランニング・コスト | E112: 決算額 | F112: 運営事業費 | G112: 運営事業 | H112: 9262838 | J112: 美術館運営課
A113: 112 | B113: 2010 | C113: 経常的経費 | D113: ランニング・コスト | E113: 決算額 | F113: 管理事業費 | G113: 管理事業費 | H113: 191844772 | J113: 美術館運営課
A114: 113 | B114: 2011 | C114: 経常的経費 | D114: ランニング・コスト | E114: 決算額 | F114: 給与・報酬 | G114: 職員給与費 | H114: 95753785 | I114: 12人 | J114: 美術館運営課
A115: 114 | B115: 2011 | C115: 経常的経費 | D115: ランニング・コスト | E115: 決算額 | F115: 給与・報酬 | G115: 美術品選定評価委員等謝礼 | H115: 325000 | I115: 美術品選定評価、美術館評価 | J115: 美術館運営課
A116: 115 | B116: 2011 | C116: 経常的経費 | D116: ランニング・コスト | E116: 決算額 | F116: 給与・報酬 | G116: 非常勤職員賃金 | H116: 18705634 | I116: 学芸員、司書、設備日常監視、教育普及推進員 | J116: 美術館運営課
A117: 116 | B117: 2011 | C117: 経常的経費 | D117: ランニング・コスト | E117: 決算額 | F117: 運営事業費 | G117: 展覧会事業 | H117: 72149084 | J117: 美術館運営課
A118: 117 | B118: 2011 | C118: 経常的経費 | D118: ランニング・コスト | E118: 決算額 | F118: 運営事業費 | G118: 教育普及事業 | H118: 6554057 | J118: 美術館運営課
A119: 118 | B119: 2011 | C119: 経常的経費 | D119: ランニング・コスト | E119: 決算額 | F119: 運営事業費 | G119: 美術品収集管理保管事業 | H119: =4422003-704 -> 4421299 | I119: 基金積立金を除く | J119: 美術館運営課
A120: 119 | B120: 2011 | C120: 経常的経費 | D120: ランニング・コスト | E120: 決算額 | F120: 運営事業費 | G120: 運営事業 | H120: 11537737 | J120: 美術館運営課
A121: 120 | B121: 2011 | C121: 経常的経費 | D121: ランニング・コスト | E121: 決算額 | F121: 運営事業費 | G121: 運営方法等調査費 | H121: 114560 | I121: 運営の方法等を検討するため他市美術館視察 | J121: 美術館運営課
A122: 121 | B122: 2011 | C122: 経常的経費 | D122: ランニング・コスト | E122: 決算額 | F122: 管理事業費 | G122: 管理事業費 | H122: 198609626 | J122: 美術館運営課
A123: 122 | B123: 2012 | C123: 経常的経費 | D123: ランニング・コスト | E123: 決算額 | F123: 給与・報酬 | G123: 職員給与費 | H123: 93541784 | I123: 10人 | J123: 美術館運営課
A124: 123 | B124: 2012 | C124: 経常的経費 | D124: ランニング・コスト | E124: 決算額 | F124: 給与・報酬 | G124: 美術品選定評価委員等謝礼 | H124: 208000 | I124: 美術品選定評価、美術館評価 | J124: 美術館運営課
A125: 124 | B125: 2012 | C125: 経常的経費 | D125: ランニング・コスト | E125: 決算額 | F125: 給与・報酬 | G125: 非常勤職員賃金 | H125: 14588422 | I125: 学芸員、司書、設備日常監視、教育普及推進員 | J125: 美術館運営課
A126: 125 | B126: 2012 | C126: 経常的経費 | D126: ランニング・コスト | E126: 決算額 | F126: 運営事業費 | G126: 展覧会事業 | H126: 67905671 | J126: 美術館運営課
A127: 126 | B127: 2012 | C127: 経常的経費 | D127: ランニング・コスト | E127: 決算額 | F127: 運営事業費 | G127: 教育普及事業 | H127: 6705075 | J127: 美術館運営課
A128: 127 | B128: 2012 | C128: 経常的経費 | D128: ランニング・コスト | E128: 決算額 | F128: 運営事業費 | G128: 美術品収集管理保管事業 | H128: =4464768-56 -> 4464712 | I128: 基金積立金を除く | J128: 美術館運営課
A129: 128 | B129: 2012 | C129: 経常的経費 | D129: ランニング・コスト | E129: 決算額 | F129: 運営事業費 | G129: 運営事業 | H129: 11337845 | J129: 美術館運営課
A130: 129 | B130: 2012 | C130: 経常的経費 | D130: ランニング・コスト | E130: 決算額 | F130: 管理事業費 | G130: 管理事業費 | H130: 200745360 | J130: 美術館運営課
A131: 130 | B131: 2013 | C131: 経常的経費 | D131: ランニング・コスト | E131: 決算額 | F131: 給与・報酬 | G131: 職員給与費 | H131: 90139670 | I131: １２人 | J131: 美術館運営課
A132: 131 | B132: 2013 | C132: 経常的経費 | D132: ランニング・コスト | E132: 決算額 | F132: 給与・報酬 | G132: 美術品選定評価委員等謝礼 | H132: 261880 | I132: 美術品選定評価、美術館評価 | J132: 美術館運営課
A133: 132 | B133: 2013 | C133: 経常的経費 | D133: ランニング・コスト | E133: 決算額 | F133: 給与・報酬 | G133: 非常勤職員賃金 | H133: 13888069 | I133: 学芸員、司書、設備日常監視、教育普及推進員 | J133: 美術館運営課
A134: 133 | B134: 2013 | C134: 経常的経費 | D134: ランニング・コスト | E134: 決算額 | F134: 運営事業費 | G134: 展覧会事業 | H134: 59037184 | J134: 美術館運営課
A135: 134 | B135: 2013 | C135: 経常的経費 | D135: ランニング・コスト | E135: 決算額 | F135: 運営事業費 | G135: 教育普及事業 | H135: 6685657 | J135: 美術館運営課
A136: 135 | B136: 2013 | C136: 経常的経費 | D136: ランニング・コスト | E136: 決算額 | F136: 運営事業費 | G136: 美術品収集管理保管事業 | H136: =4622908-101 -> 4622807 | I136: 基金積立金を除く | J136: 美術館運営課
A137: 136 | B137: 2013 | C137: 経常的経費 | D137: ランニング・コスト | E137: 決算額 | F137: 運営事業費 | G137: 運営事業 | H137: 8602480 | J137: 美術館運営課
A138: 137 | B138: 2013 | C138: 経常的経費 | D138: ランニング・コスト | E138: 決算額 | F138: 管理事業費 | G138: 管理事業費 | H138: 202078531 | J138: 美術館運営課
A139: 138 | B139: 2014 | C139: 経常的経費 | D139: ランニング・コスト | E139: 決算額 | F139: 給与・報酬 | G139: 職員給与費 | H139: 99282556 | I139: 人 | J139: 美術館運営課
A140: 139 | B140: 2014 | C140: 経常的経費 | D140: ランニング・コスト | E140: 決算額 | F140: 給与・報酬 | G140: 美術品選定評価委員等謝礼 | H140: 252760 | I140: 美術品選定評価、美術館評価 | J140: 美術館運営課
A141: 140 | B141: 2014 | C141: 経常的経費 | D141: ランニング・コスト | E141: 決算額 | F141: 給与・報酬 | G141: 非常勤職員賃金 | H141: 10784794 | I141: 学芸員、司書、教育普及推進員 | J141: 美術館運営課
A142: 141 | B142: 2014 | C142: 経常的経費 | D142: ランニング・コスト | E142: 決算額 | F142: 運営事業費 | G142: 展覧会事業 | H142: 74205272 | J142: 美術館運営課
A143: 142 | B143: 2014 | C143: 経常的経費 | D143: ランニング・コスト | E143: 決算額 | F143: 運営事業費 | G143: 教育普及事業 | H143: 6509016 | J143: 美術館運営課
A144: 143 | B144: 2014 | C144: 経常的経費 | D144: ランニング・コスト | E144: 決算額 | F144: 運営事業費 | G144: 美術品収集管理保管事業 | H144: =3877283-92 -> 3877191 | I144: 基金積立金を除く | J144: 美術館運営課
A145: 144 | B145: 2014 | C145: 経常的経費 | D145: ランニング・コスト | E145: 決算額 | F145: 運営事業費 | G145: 運営事業 | H145: 11814575 | J145: 美術館運営課
A146: 145 | B146: 2014 | C146: 経常的経費 | D146: ランニング・コスト | E146: 決算額 | F146: 管理事業費 | G146: 管理事業費 | H146: 213688935 | I146: 各種改修あり市債発行 | J146: 美術館運営課
A147: 146 | B147: 2015 | C147: 経常的経費 | D147: ランニング・コスト | E147: 決算額 | F147: 給与・報酬 | G147: 職員給与費 | H147: 97591900 | I147: 11人 | J147: 美術館運営課
A148: 147 | B148: 2015 | C148: 経常的経費 | D148: ランニング・コスト | E148: 決算額 | F148: 給与・報酬 | G148: 美術品選定評価委員等謝礼 | H148: 209920 | I148: 美術品選定評価、美術館評価 | J148: 美術館運営課
A149: 148 | B149: 2015 | C149: 経常的経費 | D149: ランニング・コスト | E149: 決算額 | F149: 給与・報酬 | G149: 非常勤職員賃金 | H149: 9554699 | I149: 学芸員、司書、教育普及推進員、広報 | J149: 美術館運営課
A150: 149 | B150: 2015 | C150: 経常的経費 | D150: ランニング・コスト | E150: 決算額 | F150: 運営事業費 | G150: 展覧会事業 | H150: 73081181 | J150: 美術館運営課
A151: 150 | B151: 2015 | C151: 経常的経費 | D151: ランニング・コスト | E151: 決算額 | F151: 運営事業費 | G151: 教育普及事業 | H151: 5807145 | J151: 美術館運営課
A152: 151 | B152: 2015 | C152: 経常的経費 | D152: ランニング・コスト | E152: 決算額 | F152: 運営事業費 | G152: 美術品収集管理保管事業 | H152: =4650925-94 -> 4650831 | I152: 基金積立金を除く | J152: 美術館運営課
A153: 152 | B153: 2015 | C153: 経常的経費 | D153: ランニング・コスト | E153: 決算額 | F153: 運営事業費 | G153: 運営事業 | H153: 12971191 | J153: 美術館運営課
A154: 153 | B154: 2015 | C154: 経常的経費 | D154: ランニング・コスト | E154: 決算額 | F154: 管理事業費 | G154: 管理事業費 | H154: 219275318 | I154: 各種改修あり市債発行 | J154: 美術館運営課
A155: 154 | B155: 2016 | C155: 経常的経費 | D155: ランニング・コスト | E155: 決算額 | F155: 給与・報酬 | G155: 職員給与費 | H155: 101405579 | I155: １２人 | J155: 美術館運営課
A156: 155 | B156: 2016 | C156: 経常的経費 | D156: ランニング・コスト | E156: 決算額 | F156: 給与・報酬 | G156: 美術品選定評価委員等謝礼 | H156: 234000 | I156: 美術品選定評価、美術館評価 | J156: 美術館運営課
A157: 156 | B157: 2016 | C157: 経常的経費 | D157: ランニング・コスト | E157: 決算額 | F157: 給与・報酬 | G157: 非常勤職員賃金 | H157: 9244669 | I157: 学芸員、司書、教育普及推進員、広報 | J157: 美術館運営課
A158: 157 | B158: 2016 | C158: 経常的経費 | D158: ランニング・コスト | E158: 決算額 | F158: 運営事業費 | G158: 展覧会事業 | H158: 79767149 | J158: 美術館運営課
A159: 158 | B159: 2016 | C159: 経常的経費 | D159: ランニング・コスト | E159: 決算額 | F159: 運営事業費 | G159: 教育普及事業 | H159: 5984117 | J159: 美術館運営課
A160: 159 | B160: 2016 | C160: 経常的経費 | D160: ランニング・コスト | E160: 決算額 | F160: 運営事業費 | G160: 美術品収集管理保管事業 | H160: =4964675-37 -> 4964638 | I160: 基金積立金を除く | J160: 美術館運営課
A161: 160 | B161: 2016 | C161: 経常的経費 | D161: ランニング・コスト | E161: 決算額 | F161: 運営事業費 | G161: 運営事業 | H161: 9024909 | J161: 美術館運営課
A162: 161 | B162: 2016 | C162: 経常的経費 | D162: ランニング・コスト | E162: 決算額 | F162: 管理事業費 | G162: 管理事業費 | H162: 215498108 | I162: 各種改修あり市債発行 | J162: 美術館運営課
A163: 162 | B163: 2017 | C163: 経常的経費 | D163: ランニング・コスト | E163: 決算額 | F163: 給与・報酬 | G163: 職員給与費 | H163: 107814013 | I163: 12人 | J163: 美術館運営課
A164: 163 | B164: 2017 | C164: 経常的経費 | D164: ランニング・コスト | E164: 決算額 | F164: 給与・報酬 | G164: 美術品選定評価委員等謝礼 | H164: 222140 | I164: 美術品選定評価、美術館評価 | J164: 美術館運営課
A165: 164 | B165: 2017 | C165: 経常的経費 | D165: ランニング・コスト | E165: 決算額 | F165: 給与・報酬 | G165: 非常勤職員賃金 | H165: 11740480 | I165: 学芸員、司書、教育普及推進員、広報 | J165: 美術館運営課
A166: 165 | B166: 2017 | C166: 経常的経費 | D166: ランニング・コスト | E166: 決算額 | F166: 運営事業費 | G166: 展覧会事業 | H166: 73326568 | J166: 美術館運営課
A167: 166 | B167: 2017 | C167: 経常的経費 | D167: ランニング・コスト | E167: 決算額 | F167: 運営事業費 | G167: 教育普及事業 | H167: 6131964 | J167: 美術館運営課
A168: 167 | B168: 2017 | C168: 経常的経費 | D168: ランニング・コスト | E168: 決算額 | F168: 運営事業費 | G168: 美術品収集管理保管事業 | H168: =4579562-36 -> 4579526 | I168: 基金積立金を除く | J168: 美術館運営課
A169: 168 | B169: 2017 | C169: 経常的経費 | D169: ランニング・コスト | E169: 決算額 | F169: 運営事業費 | G169: 運営事業 | H169: 12061407 | J169: 美術館運営課
A170: 169 | B170: 2017 | C170: 経常的経費 | D170: ランニング・コスト | E170: 決算額 | F170: 管理事業費 | G170: 管理事業費 | H170: =286056642-48954953-6231600 -> 230870089 | I170: 工事関連を除く | J170: 美術館運営課
A171: 170 | B171: 2017 | C171: 投資的経費 | D171: ランニング・コスト | E171: 決算額 | F171: 設備更新 | G171: 空調設備 | H171: =48954953+6231600 -> 55186553 | I171: 空調自動制御装置システム更新等修繕料ほか | J171: 美術館運営課
A172: 171 | B172: 2018 | C172: 経常的経費 | D172: ランニング・コスト | E172: 決算額 | F172: 給与・報酬 | G172: 職員給与費 | H172: 103850288 | I172: １２人 | J172: 美術館運営課
A173: 172 | B173: 2018 | C173: 経常的経費 | D173: ランニング・コスト | E173: 決算額 | F173: 給与・報酬 | G173: 美術品選定評価委員等謝礼 | H173: 208000 | I173: 美術品選定評価、美術館評価 | J173: 美術館運営課
A174: 173 | B174: 2018 | C174: 経常的経費 | D174: ランニング・コスト | E174: 決算額 | F174: 給与・報酬 | G174: 非常勤職員賃金 | H174: 11771580 | I174: 学芸員、司書、教育普及推進員、広報 | J174: 美術館運営課
A175: 174 | B175: 2018 | C175: 経常的経費 | D175: ランニング・コスト | E175: 決算額 | F175: 運営事業費 | G175: 展覧会事業 | H175: 75747321 | J175: 美術館運営課
A176: 175 | B176: 2018 | C176: 経常的経費 | D176: ランニング・コスト | E176: 決算額 | F176: 運営事業費 | G176: 教育普及事業 | H176: 5921069 | J176: 美術館運営課
A177: 176 | B177: 2018 | C177: 経常的経費 | D177: ランニング・コスト | E177: 決算額 | F177: 運営事業費 | G177: 美術品収集管理保管事業 | H177: =4777589-36 -> 4777553 | I177: 基金積立金を除く | J177: 美術館運営課
A178: 177 | B178: 2018 | C178: 経常的経費 | D178: ランニング・コスト | E178: 決算額 | F178: 運営事業費 | G178: 運営事業 | H178: 9429882 | J178: 美術館運営課
A179: 178 | B179: 2018 | C179: 経常的経費 | D179: ランニング・コスト | E179: 決算額 | F179: 管理事業費 | G179: 管理事業費 | H179: =282733657-38878488-4644000 -> 239211169 | J179: 美術館運営課
A180: 179 | B180: 2018 | C180: 投資的経費 | D180: ランニング・コスト | E180: 決算額 | F180: 設備更新 | G180: 空調設備 | H180: =38878488+4644000 -> 43522488 | I180: 空調自動制御装置システム更新等修繕料ほか | J180: 美術館運営課
A181: 180 | B181: 2019 | C181: 経常的経費 | D181: ランニング・コスト | E181: 予算額 | F181: 給与・報酬 | G181: 職員給与費 | H181: 105630000 | I181: 12人 | J181: 美術館運営課
A182: 181 | B182: 2019 | C182: 経常的経費 | D182: ランニング・コスト | E182: 予算額 | F182: 給与・報酬 | G182: 美術品選定評価委員等謝礼 | H182: 290000 | I182: 美術品選定評価、美術館評価 | J182: 美術館運営課
A183: 182 | B183: 2019 | C183: 経常的経費 | D183: ランニング・コスト | E183: 予算額 | F183: 給与・報酬 | G183: 非常勤職員賃金 | H183: 11755000 | I183: 学芸員、司書、教育普及推進員、広報 | J183: 美術館運営課
A184: 183 | B184: 2019 | C184: 経常的経費 | D184: ランニング・コスト | E184: 予算額 | F184: 運営事業費 | G184: 展覧会事業 | H184: 83849000 | J184: 美術館運営課
A185: 184 | B185: 2019 | C185: 経常的経費 | D185: ランニング・コスト | E185: 予算額 | F185: 運営事業費 | G185: 教育普及事業 | H185: 6940000 | J185: 美術館運営課
A186: 185 | B186: 2019 | C186: 経常的経費 | D186: ランニング・コスト | E186: 予算額 | F186: 運営事業費 | G186: 美術品収集管理保管事業 | H186: 5381000 | J186: 美術館運営課
A187: 186 | B187: 2019 | C187: 経常的経費 | D187: ランニング・コスト | E187: 予算額 | F187: 運営事業費 | G187: 運営事業 | H187: 15482000 | J187: 美術館運営課
A188: 187 | B188: 2019 | C188: 経常的経費 | D188: ランニング・コスト | E188: 予算額 | F188: 管理事業費 | G188: 管理事業費 | H188: =322894000-49025000-16555000 -> 257314000 | J188: 美術館運営課
A189: 188 | B189: 2019 | C189: 投資的経費 | D189: ランニング・コスト | E189: 予算額 | F189: 設備更新 | G189: 空調設備 | H189: =49025000+16555000 -> 65580000 | I189: 空調自動制御装置システム更新等修繕料ほか | J189: 美術館運営課
A190: 189 | B190: 2020 | C190: 経常的経費 | D190: ランニング・コスト | E190: 予算額 | F190: 給与・報酬 | G190: 職員給与費 | H190: =106235000 -> 106235000 | I190: 12人 | J190: 美術館運営課
A191: 190 | B191: 2020 | C191: 経常的経費 | D191: ランニング・コスト | E191: 予算額 | F191: 給与・報酬 | G191: 美術品選定評価委員等謝礼 | H191: 288000 | I191: 美術品選定評価、美術館評価 | J191: 美術館運営課
A192: 191 | B192: 2020 | C192: 経常的経費 | D192: ランニング・コスト | E192: 予算額 | F192: 給与・報酬 | G192: 非常勤職員賃金 | H192: =4346000+10886000+1943000+2082 -> 17177082 | I192: 会計年度任用職員への転換 | J192: 美術館運営課
A193: 192 | B193: 2020 | C193: 経常的経費 | D193: ランニング・コスト | E193: 予算額 | F193: 運営事業費 | G193: 展覧会事業 | H193: 84285000 | J193: 美術館運営課
A194: 193 | B194: 2020 | C194: 経常的経費 | D194: ランニング・コスト | E194: 予算額 | F194: 運営事業費 | G194: 教育普及事業 | H194: 6772000 | J194: 美術館運営課
A195: 194 | B195: 2020 | C195: 経常的経費 | D195: ランニング・コスト | E195: 予算額 | F195: 運営事業費 | G195: 美術品収集管理保管事業 | H195: 5111000 | J195: 美術館運営課
A196: 195 | B196: 2020 | C196: 経常的経費 | D196: ランニング・コスト | E196: 予算額 | F196: 運営事業費 | G196: 運営事業 | H196: 8834000 | J196: 美術館運営課
A197: 196 | B197: 2020 | C197: 経常的経費 | D197: ランニング・コスト | E197: 予算額 | F197: 管理事業費 | G197: 管理事業費 | H197: =302097000-9130000-31148000 -> 261819000 | J197: 美術館運営課
A198: 197 | B198: 2020 | C198: 投資的経費 | D198: ランニング・コスト | E198: 予算額 | F198: 設備更新 | G198: 建物設備 | H198: =9130000+31148000 -> 40278000 | I198: 本館建具塗装改修等工事請負費ほか | J198: 美術館運営課

Sheet 経常収支
A1: 年度 | B1: 経常的収入 | C1: 経常的支出 | D1: 経常収支 | E1: 経常収支比率
A2: 2007 | B2: 89894350 | C2: 457119744 | D2: -367225394 | E2: 0.1966538334
A3: 2008 | B3: 46651060 | C3: 452367067 | D3: -405716007 | E3: 0.1031265612
A4: 2009 | B4: 47780500 | C4: 427599609 | D4: -379819109 | E4: 0.1117412154
A5: 2010 | B5: 46919550 | C5: 399075417 | D5: -352155867 | E5: 0.1175706345
A6: 2011 | B6: 48513230 | C6: 408170782 | D6: -359657552 | E6: 0.1188552247
A7: 2012 | B7: 44211050 | C7: 399496869 | D7: -355285819 | E7: 0.1106668248
A8: 2013 | B8: 45864960 | C8: 385316278 | D8: -339451318 | E8: 0.1190319813
A9: 2014 | B9: 49996050 | C9: 420415099 | D9: -370419049 | E9: 0.1189206813
A10: 2015 | B10: 56370080 | C10: 423142185 | D10: -366772105 | E10: 0.1332178213
A11: 2016 | B11: 54248550 | C11: 426123169 | D11: -371874619 | E11: 0.1273072059
A12: 2017 | B12: 64239020 | C12: 446746187 | D12: -382507167 | E12: 0.1437931019
A13: 2018 | B13: 55406770 | C13: 450916862 | D13: -395510092 | E13: 0.1228757997
A14: 2019 | B14: 66269000 | C14: 486641000 | D14: -420372000 | E14: 0.13617636
A15: 2020 | B15: 69494000 | C15: 490521082 | D15: -421027082 | E15: 0.1416738292
